[Event "December 19 Late 2023"]
[Site "https://www.chess.com"]
[Date "2023.12.19"]
[Round "1"]
[White "Guimaraes, Wagner Peixoto"]
[Black "Martin Fuentes, Alberto"]
[Result "1/2-1/2"]
[Board "108"]
[TimeControl "180+1"]
[WhiteFideId "2100940"]
[BlackFideId "2292289"]
[WhiteElo "2140"]
[BlackElo "2280"]
[WhiteTeam "BRA"]
[BlackTeam "ESP"]
[WhiteClock "0:00:06"]
[BlackClock "0:00:29"]

1. d4 {[%clk 0:02:59]}  Nf6 {[%clk 0:02:38]} 2. Nf3 {[%clk 0:02:59]}  c5 {[%clk 0:02:38]} 3. c3 {[%clk 0:02:48]}  cxd4 {[%clk 0:02:36]} 4. cxd4 {[%clk 0:02:49]}  e6 {[%clk 0:02:36]} 5. Nc3 {[%clk 0:02:49]}  Be7 {[%clk 0:02:37]} 6. e4 {[%clk 0:02:48]}  O-O {[%clk 0:02:38]} 7. e5 {[%clk 0:02:48]}  Ne8 {[%clk 0:02:37]} 8. Bd3 {[%clk 0:02:48]}  d6 {[%clk 0:02:37]} 9. h4 {[%clk 0:02:44]}  dxe5 {[%clk 0:02:37]} 10. dxe5 {[%clk 0:02:36]}  h6 {[%clk 0:02:36]} 11. Qe2 {[%clk 0:02:35]}  Nc6 {[%clk 0:02:33]} 12. Qe4 {[%clk 0:02:32]}  f5 {[%clk 0:02:33]} 13. exf6 {[%clk 0:02:32]}  Nxf6 {[%clk 0:02:33]} 14. Qg6 {[%clk 0:02:28]}  Nb4 {[%clk 0:02:24]} 15. Bxh6 {[%clk 0:01:46]}  Nxd3+ {[%clk 0:02:15]} 16. Ke2 {[%clk 0:01:46]}  Nf4+ {[%clk 0:01:43]} 17. Bxf4 {[%clk 0:01:45]}  Qe8 {[%clk 0:01:43]} 18. Qxe8 {[%clk 0:01:44]}  Rxe8 {[%clk 0:01:44]} 19. Rhd1 {[%clk 0:01:33]}  b6 {[%clk 0:01:45]} 20. Ne5 {[%clk 0:01:21]}  Ba6+ {[%clk 0:01:43]} 21. Ke3 {[%clk 0:01:21]}  Bc5+ {[%clk 0:01:43]} 22. Kf3 {[%clk 0:01:21]}  Rf8 {[%clk 0:01:40]} 23. g3 {[%clk 0:01:16]}  Nd5 {[%clk 0:01:24]} 24. Nxd5 {[%clk 0:01:09]}  Bb7 {[%clk 0:01:23]} 25. Kg2 {[%clk 0:01:06]}  Bxd5+ {[%clk 0:01:23]} 26. Kg1 {[%clk 0:01:06]}  Rfd8 {[%clk 0:01:21]} 27. a3 {[%clk 0:01:02]}  Bb3 {[%clk 0:01:20]} 28. Rxd8+ {[%clk 0:00:58]}  Rxd8 {[%clk 0:01:21]} 29. Re1 {[%clk 0:00:55]}  Rd5 {[%clk 0:01:13]} 30. h5 {[%clk 0:00:49]}  a5 {[%clk 0:01:12]} 31. g4 {[%clk 0:00:34]}  Rd4 {[%clk 0:01:11]} 32. Be3 {[%clk 0:00:29]}  Re4 {[%clk 0:01:09]} 33. Ng6 {[%clk 0:00:23]}  Rxg4+ {[%clk 0:01:09]} 34. Kh2 {[%clk 0:00:19]}  Re4 {[%clk 0:00:59]} 35. Re2 {[%clk 0:00:13]}  Kf7 {[%clk 0:00:58]} 36. Rd2 {[%clk 0:00:08]}  Bxe3 {[%clk 0:00:56]} 37. fxe3 {[%clk 0:00:09]}  Rxe3 {[%clk 0:00:56]} 38. Rd6 {[%clk 0:00:09]}  Re2+ {[%clk 0:00:52]} 39. Kg3 {[%clk 0:00:09]}  Rxb2 {[%clk 0:00:53]} 40. Rxb6 {[%clk 0:00:08]}  a4 {[%clk 0:00:54]} 41. Ne5+ {[%clk 0:00:08]}  Kf6 {[%clk 0:00:53]} 42. Ng6 {[%clk 0:00:08]}  Ra2 {[%clk 0:00:52]} 43. Kf4 {[%clk 0:00:07]}  Ra1 {[%clk 0:00:49]} 44. Rb8 {[%clk 0:00:06]}  Rf1+ {[%clk 0:00:49]} 45. Kg4 {[%clk 0:00:07]}  Bd1+ {[%clk 0:00:49]} 46. Kg3 {[%clk 0:00:07]}  Bxh5 {[%clk 0:00:48]} 47. Rf8+ {[%clk 0:00:06]}  Kxg6 {[%clk 0:00:47]} 48. Rxf1 {[%clk 0:00:07]}  Be2 {[%clk 0:00:44]} 49. Rf4 {[%clk 0:00:07]}  Bd1 {[%clk 0:00:42]} 50. Rb4 {[%clk 0:00:06]}  Bb3 {[%clk 0:00:42]} 51. Kf4 {[%clk 0:00:06]}  Kf6 {[%clk 0:00:41]} 52. Rb5 {[%clk 0:00:05]}  g6 {[%clk 0:00:41]} 53. Ra5 {[%clk 0:00:05]}  Ke7 {[%clk 0:00:40]} 54. Rg5 {[%clk 0:00:04]}  Bc2 {[%clk 0:00:37]} 55. Rb5 {[%clk 0:00:04]}  Kd6 {[%clk 0:00:36]} 56. Ra5 {[%clk 0:00:04]}  Kc6 {[%clk 0:00:35]} 57. Re5 {[%clk 0:00:03]}  Bb3 {[%clk 0:00:32]} 58. Rg5 {[%clk 0:00:03]}  Bd5 {[%clk 0:00:32]} 59. Rxg6 {[%clk 0:00:03]}  Kc5 {[%clk 0:00:33]} 60. Ke5 {[%clk 0:00:03]}  Kc4 {[%clk 0:00:34]} 61. Rg3 {[%clk 0:00:03]}  Kc5 {[%clk 0:00:28]} 62. Rh3 {[%clk 0:00:04]}  Kb5 {[%clk 0:00:27]} 63. Rg3 {[%clk 0:00:04]}  Kc4 {[%clk 0:00:28]} 64. Rh3 {[%clk 0:00:04]}  Kc5 {[%clk 0:00:28]} 65. Rg3 {[%clk 0:00:05]}  Bc4 {[%clk 0:00:28]} 66. Re3 {[%clk 0:00:04]}  Bb3 {[%clk 0:00:28]} 67. Rg3 {[%clk 0:00:05]}  Ba2 {[%clk 0:00:25]} 68. Rh3 {[%clk 0:00:05]}  Bb3 {[%clk 0:00:25]} 69. Rg3 {[%clk 0:00:05]}  Kc4 {[%clk 0:00:26]} 70. Rh3 {[%clk 0:00:05]}  Bc2 {[%clk 0:00:26]} 71. Rg3 {[%clk 0:00:05]}  Bd3 {[%clk 0:00:26]} 72. Rh3 {[%clk 0:00:06]}  Kc3 {[%clk 0:00:27]} 73. Rg3 {[%clk 0:00:06]}  Kc2 {[%clk 0:00:26]} 74. Kxe6 {[%clk 0:00:06]}  Bc4+ {[%clk 0:00:26]} 75. Ke5 {[%clk 0:00:06]}  Bb3 {[%clk 0:00:27]} 76. Kd4 {[%clk 0:00:06]}  Kb2 {[%clk 0:00:27]} 77. Kc5 {[%clk 0:00:07]}  Kxa3 {[%clk 0:00:28]} 78. Rg1 {[%clk 0:00:07]}  Kb2 {[%clk 0:00:28]} 79. Rg7 {[%clk 0:00:05]}  a3 {[%clk 0:00:27]} 80. Ra7 {[%clk 0:00:06]}  a2 {[%clk 0:00:28]} 81. Rxa2+ {[%clk 0:00:06]}  Kxa2 {[%clk 0:00:29]} 1/2-1/2

[Event "December 19 Late 2023"]
[Site "https://www.chess.com"]
[Date "2023.12.19"]
[Round "1"]
[White "Slavin, Alexey"]
[Black "Mendoza, Rodrigo"]
[Result "1-0"]
[Board "110"]
[TimeControl "180+1"]
[WhiteFideId "24104388"]
[BlackFideId "3301931"]
[WhiteElo "2264"]
[BlackElo "2111"]
[WhiteTeam "RUS"]
[BlackTeam "BOL"]
[WhiteClock "0:01:09"]
[BlackClock "0:01:17"]

1. e4 {[%clk 0:02:59]}  c6 {[%clk 0:02:59]} 2. d4 {[%clk 0:02:58]}  d5 {[%clk 0:03:00]} 3. e5 {[%clk 0:02:58]}  Bf5 {[%clk 0:02:59]} 4. Nf3 {[%clk 0:02:58]}  e6 {[%clk 0:03:00]} 5. Be2 {[%clk 0:02:59]}  Nd7 {[%clk 0:02:59]} 6. O-O {[%clk 0:02:59]}  Ne7 {[%clk 0:03:00]} 7. c3 {[%clk 0:02:59]}  h6 {[%clk 0:02:59]} 8. a3 {[%clk 0:03:00]}  c5 {[%clk 0:03:00]} 9. b4 {[%clk 0:02:59]}  c4 {[%clk 0:02:55]} 10. a4 {[%clk 0:02:58]}  g5 {[%clk 0:02:54]} 11. Na3 {[%clk 0:02:50]}  a6 {[%clk 0:02:53]} 12. Nc2 {[%clk 0:02:49]}  Bg7 {[%clk 0:02:51]} 13. Ne3 {[%clk 0:02:48]}  Bg6 {[%clk 0:02:50]} 14. Ne1 {[%clk 0:02:47]}  O-O {[%clk 0:02:39]} 15. f4 {[%clk 0:02:46]}  Nf5 {[%clk 0:02:39]} 16. Nxf5 {[%clk 0:02:41]}  Bxf5 {[%clk 0:02:39]} 17. fxg5 {[%clk 0:02:40]}  hxg5 {[%clk 0:02:39]} 18. Bg4 {[%clk 0:02:36]}  Bg6 {[%clk 0:01:43]} 19. Nf3 {[%clk 0:02:22]}  Bd3 {[%clk 0:01:42]} 20. Bxg5 {[%clk 0:02:20]}  Qe8 {[%clk 0:01:33]} 21. Rf2 {[%clk 0:02:18]}  f6 {[%clk 0:01:33]} 22. exf6 {[%clk 0:02:08]}  Nxf6 {[%clk 0:01:34]} 23. Bxf6 {[%clk 0:01:47]}  Rxf6 {[%clk 0:01:35]} 24. Qe1 {[%clk 0:01:29]}  Bh6 {[%clk 0:01:20]} 25. Ne5 {[%clk 0:01:19]}  Be4 {[%clk 0:01:17]} 26. Rxf6 {[%clk 0:01:09]} 1-0

[Event "December 19 Late 2023"]
[Site "https://www.chess.com"]
[Date "2023.12.19"]
[Round "1"]
[White "Srinath, Rao S.V."]
[Black "Gruzman, Ilya"]
[Result "0-1"]
[Board "111"]
[TimeControl "180+1"]
[WhiteFideId "5028876"]
[BlackFideId "2812703"]
[WhiteElo "2198"]
[BlackElo "1986"]
[WhiteTeam "IND"]
[BlackTeam "ISR"]
[WhiteClock "0:00:18"]
[BlackClock "0:00:05"]

1. d4 {[%clk 0:03:00]}  Nf6 {[%clk 0:02:59]} 2. Nf3 {[%clk 0:03:00]}  g6 {[%clk 0:03:00]} 3. c4 {[%clk 0:03:00]}  Bg7 {[%clk 0:03:00]} 4. g3 {[%clk 0:03:01]}  O-O {[%clk 0:03:01]} 5. Bg2 {[%clk 0:03:02]}  d6 {[%clk 0:03:02]} 6. O-O {[%clk 0:03:03]}  c5 {[%clk 0:03:02]} 7. Nc3 {[%clk 0:03:00]}  Nc6 {[%clk 0:03:02]} 8. e3 {[%clk 0:02:58]}  Bf5 {[%clk 0:03:00]} 9. b3 {[%clk 0:02:55]}  Ne4 {[%clk 0:02:50]} 10. Bb2 {[%clk 0:02:55]}  Nxc3 {[%clk 0:02:37]} 11. Bxc3 {[%clk 0:02:56]}  Be4 {[%clk 0:02:33]} 12. Qd2 {[%clk 0:02:54]}  Qb6 {[%clk 0:02:24]} 13. Rac1 {[%clk 0:02:48]}  Bxf3 {[%clk 0:02:15]} 14. dxc5 {[%clk 0:02:48]}  dxc5 {[%clk 0:02:05]} 15. Bxf3 {[%clk 0:02:48]}  Rfd8 {[%clk 0:02:04]} 16. Qb2 {[%clk 0:02:44]}  Bxc3 {[%clk 0:01:58]} 17. Qxc3 {[%clk 0:02:45]}  Nb4 {[%clk 0:01:57]} 18. Ra1 {[%clk 0:02:20]}  Rd6 {[%clk 0:01:11]} 19. a3 {[%clk 0:02:07]}  Nc6 {[%clk 0:01:10]} 20. Rab1 {[%clk 0:02:06]}  Rad8 {[%clk 0:01:07]} 21. b4 {[%clk 0:02:04]}  Rd3 {[%clk 0:01:04]} 22. Qa1 {[%clk 0:01:53]}  cxb4 {[%clk 0:00:58]} 23. axb4 {[%clk 0:01:51]}  Nxb4 {[%clk 0:00:56]} 24. Rfc1 {[%clk 0:01:50]}  Qc5 {[%clk 0:00:42]} 25. Bxb7 {[%clk 0:01:46]}  Rd2 {[%clk 0:00:40]} 26. Bg2 {[%clk 0:01:12]}  Qf5 {[%clk 0:00:22]} 27. Rf1 {[%clk 0:01:11]}  Ra2 {[%clk 0:00:21]} 28. Qc3 {[%clk 0:01:09]}  a5 {[%clk 0:00:18]} 29. e4 {[%clk 0:01:03]}  Qc5 {[%clk 0:00:15]} 30. h4 {[%clk 0:00:58]}  Rd3 {[%clk 0:00:11]} 31. Qc1 {[%clk 0:00:56]}  Rdd2 {[%clk 0:00:11]} 32. Qe1 {[%clk 0:00:48]}  Nd3 {[%clk 0:00:11]} 33. Rb8+ {[%clk 0:00:48]}  Kg7 {[%clk 0:00:09]} 34. Rb5 {[%clk 0:00:31]}  Qxb5 {[%clk 0:00:07]} 35. cxb5 {[%clk 0:00:30]}  Nxe1 {[%clk 0:00:07]} 36. Rxe1 {[%clk 0:00:31]}  Rxf2 {[%clk 0:00:06]} 37. Bf1 {[%clk 0:00:31]}  Rfb2 {[%clk 0:00:04]} 38. Rc1 {[%clk 0:00:29]}  a4 {[%clk 0:00:02]} 39. e5 {[%clk 0:00:27]}  a3 {[%clk 0:00:02]} 40. e6 {[%clk 0:00:27]}  fxe6 {[%clk 0:00:02]} 41. Rc7 {[%clk 0:00:26]}  Kf6 {[%clk 0:00:01]} 42. Rc4 {[%clk 0:00:25]}  Ra1 {[%clk 0:00:01]} 43. Rf4+ {[%clk 0:00:25]}  Ke5 {[%clk 0:00:01]} 44. Rf3 {[%clk 0:00:21]}  Rbb1 {[%clk 0:00:02]} 45. Re3+ {[%clk 0:00:22]}  Kd6 {[%clk 0:00:02]} 46. Rd3+ {[%clk 0:00:21]}  Kc5 {[%clk 0:00:03]} 47. Rc3+ {[%clk 0:00:21]}  Kb6 {[%clk 0:00:04]} 48. Rc6+ {[%clk 0:00:21]}  Kb7 {[%clk 0:00:05]} 49. Kg2 {[%clk 0:00:20]}  Rxf1 {[%clk 0:00:05]} 50. Rxe6 {[%clk 0:00:20]}  Rfe1 {[%clk 0:00:05]} 51. Rc6 {[%clk 0:00:18]}  a2 {[%clk 0:00:05]} 0-1

[Event "December 19 Late 2023"]
[Site "https://www.chess.com"]
[Date "2023.12.19"]
[Round "1"]
[White "Mazzilli, Piero"]
[Black "slidingknight2775"]
[Result "1/2-1/2"]
[Board "120"]
[TimeControl "180+1"]
[WhiteFideId "807087"]
[WhiteElo "2293"]
[BlackElo "2627"]
[WhiteTeam "ITA"]
[WhiteClock "0:00:06"]
[BlackClock "0:00:03"]

1. e4 {[%clk 0:03:00]}  c6 {[%clk 0:02:58]} 2. c4 {[%clk 0:03:00]}  d5 {[%clk 0:02:58]} 3. cxd5 {[%clk 0:03:01]}  cxd5 {[%clk 0:02:59]} 4. exd5 {[%clk 0:03:01]}  Nf6 {[%clk 0:03:00]} 5. Bb5+ {[%clk 0:03:00]}  Nbd7 {[%clk 0:03:00]} 6. Nc3 {[%clk 0:03:00]}  a6 {[%clk 0:02:59]} 7. Bxd7+ {[%clk 0:02:54]}  Qxd7 {[%clk 0:03:00]} 8. Qb3 {[%clk 0:02:52]}  b5 {[%clk 0:02:57]} 9. Nf3 {[%clk 0:02:51]}  Bb7 {[%clk 0:02:56]} 10. Ne5 {[%clk 0:02:52]}  Qd6 {[%clk 0:02:56]} 11. d4 {[%clk 0:02:52]}  Bxd5 {[%clk 0:02:44]} 12. Nxd5 {[%clk 0:02:49]}  Qxd5 {[%clk 0:02:45]} 13. Qxd5 {[%clk 0:02:47]}  Nxd5 {[%clk 0:02:45]} 14. Bd2 {[%clk 0:02:47]}  f6 {[%clk 0:02:44]} 15. Nd3 {[%clk 0:02:43]}  e6 {[%clk 0:02:39]} 16. Rc1 {[%clk 0:02:42]}  Kd7 {[%clk 0:02:36]} 17. Ke2 {[%clk 0:02:25]}  Bd6 {[%clk 0:02:33]} 18. Nc5+ {[%clk 0:02:23]}  Bxc5 {[%clk 0:02:33]} 19. Rxc5 {[%clk 0:02:23]}  Rhc8 {[%clk 0:02:31]} 20. Rhc1 {[%clk 0:01:48]}  Nb6 {[%clk 0:02:19]} 21. b3 {[%clk 0:01:44]}  Nd5 {[%clk 0:02:11]} 22. Kd3 {[%clk 0:01:39]}  Rc7 {[%clk 0:01:47]} 23. f3 {[%clk 0:01:14]}  Rac8 {[%clk 0:01:46]} 24. Rxc7+ {[%clk 0:01:14]}  Rxc7 {[%clk 0:01:47]} 25. Rxc7+ {[%clk 0:01:13]}  Kxc7 {[%clk 0:01:47]} 26. a4 {[%clk 0:01:14]}  Kc6 {[%clk 0:01:43]} 27. g4 {[%clk 0:01:13]}  bxa4 {[%clk 0:01:31]} 28. bxa4 {[%clk 0:01:12]}  Nb6 {[%clk 0:01:32]} 29. a5 {[%clk 0:01:12]}  Nc8 {[%clk 0:01:32]} 30. g5 {[%clk 0:01:07]}  Kd5 {[%clk 0:01:24]} 31. gxf6 {[%clk 0:01:05]}  gxf6 {[%clk 0:01:25]} 32. Bb4 {[%clk 0:01:02]}  Na7 {[%clk 0:01:23]} 33. Bc5 {[%clk 0:00:56]}  Nc6 {[%clk 0:01:22]} 34. Bb6 {[%clk 0:00:55]}  Ne7 {[%clk 0:01:15]} 35. Bd8 {[%clk 0:00:51]}  Nc6 {[%clk 0:01:15]} 36. Bb6 {[%clk 0:00:39]}  f5 {[%clk 0:01:14]} 37. h3 {[%clk 0:00:39]}  Nb4+ {[%clk 0:01:08]} 38. Kc3 {[%clk 0:00:39]}  Nc6 {[%clk 0:01:06]} 39. Kd3 {[%clk 0:00:39]}  Ne7 {[%clk 0:01:01]} 40. Ke3 {[%clk 0:00:40]}  Ng6 {[%clk 0:01:00]} 41. Bd8 {[%clk 0:00:33]}  f4+ {[%clk 0:00:42]} 42. Kd3 {[%clk 0:00:33]}  e5 {[%clk 0:00:41]} 43. dxe5 {[%clk 0:00:31]}  Nxe5+ {[%clk 0:00:42]} 44. Ke2 {[%clk 0:00:31]}  Kc4 {[%clk 0:00:34]} 45. Bc7 {[%clk 0:00:30]}  Nc6 {[%clk 0:00:35]} 46. Bxf4 {[%clk 0:00:29]}  Nxa5 {[%clk 0:00:34]} 47. Bc7 {[%clk 0:00:26]}  Nc6 {[%clk 0:00:34]} 48. f4 {[%clk 0:00:25]}  a5 {[%clk 0:00:31]} 49. f5 {[%clk 0:00:25]}  Kd5 {[%clk 0:00:31]} 50. Kd3 {[%clk 0:00:24]}  a4 {[%clk 0:00:28]} 51. Kc3 {[%clk 0:00:25]}  h6 {[%clk 0:00:22]} 52. h4 {[%clk 0:00:24]}  h5 {[%clk 0:00:22]} 53. Bf4 {[%clk 0:00:18]}  Nd4 {[%clk 0:00:17]} 54. Kb4 {[%clk 0:00:12]}  Ke4 {[%clk 0:00:13]} 55. Bg5 {[%clk 0:00:10]}  Nxf5 {[%clk 0:00:11]} 56. Kxa4 {[%clk 0:00:11]}  Kf3 {[%clk 0:00:12]} 57. Kb4 {[%clk 0:00:11]}  Kg4 {[%clk 0:00:12]} 58. Kc4 {[%clk 0:00:10]}  Nxh4 {[%clk 0:00:12]} 59. Bd8 {[%clk 0:00:10]}  Ng6 {[%clk 0:00:11]} 60. Kd3 {[%clk 0:00:10]}  Kf3 {[%clk 0:00:11]} 61. Bf6 {[%clk 0:00:09]}  Nf4+ {[%clk 0:00:11]} 62. Kd2 {[%clk 0:00:08]}  Nd5 {[%clk 0:00:11]} 63. Bd8 {[%clk 0:00:07]}  Ne3 {[%clk 0:00:12]} 64. Ke1 {[%clk 0:00:05]}  Kg2 {[%clk 0:00:12]} 65. Ke2 {[%clk 0:00:06]}  Ng4 {[%clk 0:00:13]} 66. Be7 {[%clk 0:00:05]}  Nh2 {[%clk 0:00:13]} 67. Bd8 {[%clk 0:00:05]}  Nf3 {[%clk 0:00:13]} 68. Be7 {[%clk 0:00:06]}  Nd4+ {[%clk 0:00:14]} 69. Ke3 {[%clk 0:00:06]}  Nf5+ {[%clk 0:00:14]} 70. Kf4 {[%clk 0:00:06]}  Ng3 {[%clk 0:00:08]} 71. Kg5 {[%clk 0:00:06]}  Kh3 {[%clk 0:00:09]} 72. Bd6 {[%clk 0:00:05]}  h4 {[%clk 0:00:09]} 73. Be7 {[%clk 0:00:06]}  Kg2 {[%clk 0:00:03]} 74. Kxh4 {[%clk 0:00:06]} 1/2-1/2

[Event "December 19 Late 2023"]
[Site "https://www.chess.com"]
[Date "2023.12.19"]
[Round "1"]
[White "Nasybullina, Alfia"]
[Black "Golubev, Mikhail"]
[Result "0-1"]
[Board "122"]
[TimeControl "180+1"]
[WhiteFideId "4132416"]
[BlackFideId "14100983"]
[WhiteElo "1920"]
[BlackElo "2352"]
[WhiteTeam "KAZ"]
[BlackTeam "UKR"]
[WhiteClock "0:01:59"]
[BlackClock "0:00:06"]

1. d4 {[%clk 0:03:00]}  Nf6 {[%clk 0:02:47]} 2. Nf3 {[%clk 0:03:00]}  d6 {[%clk 0:02:48]} 3. Bg5 {[%clk 0:02:58]}  Nbd7 {[%clk 0:02:47]} 4. Nbd2 {[%clk 0:02:58]}  e5 {[%clk 0:02:45]} 5. dxe5 {[%clk 0:02:57]}  dxe5 {[%clk 0:02:44]} 6. e4 {[%clk 0:02:58]}  h6 {[%clk 0:02:41]} 7. Bh4 {[%clk 0:02:55]}  Be7 {[%clk 0:02:38]} 8. Bd3 {[%clk 0:02:52]}  O-O {[%clk 0:02:36]} 9. O-O {[%clk 0:02:52]}  Nh5 {[%clk 0:01:41]} 10. Bg3 {[%clk 0:02:50]}  Nxg3 {[%clk 0:01:37]} 11. hxg3 {[%clk 0:02:51]}  c6 {[%clk 0:01:31]} 12. Nc4 {[%clk 0:02:49]}  Qc7 {[%clk 0:01:30]} 13. Re1 {[%clk 0:02:48]}  b5 {[%clk 0:01:24]} 14. Ne3 {[%clk 0:02:45]}  Nc5 {[%clk 0:01:23]} 15. Nf5 {[%clk 0:02:41]}  Bxf5 {[%clk 0:01:22]} 16. exf5 {[%clk 0:02:41]}  Bf6 {[%clk 0:01:09]} 17. Qe2 {[%clk 0:02:40]}  e4 {[%clk 0:01:07]} 18. Bxe4 {[%clk 0:02:39]}  Rfe8 {[%clk 0:01:00]} 19. Nd2 {[%clk 0:02:38]}  Bxb2 {[%clk 0:01:00]} 20. Rad1 {[%clk 0:02:35]}  Bc3 {[%clk 0:00:58]} 21. f3 {[%clk 0:02:35]}  Qxg3 {[%clk 0:00:53]} 22. Qf2 {[%clk 0:02:34]}  Qxf2+ {[%clk 0:00:39]} 23. Kxf2 {[%clk 0:02:35]}  Nxe4+ {[%clk 0:00:20]} 24. Rxe4 {[%clk 0:02:31]}  Red8 {[%clk 0:00:17]} 25. Ke2 {[%clk 0:02:17]}  Rxd2+ {[%clk 0:00:17]} 26. Rxd2 {[%clk 0:02:17]}  Bxd2 {[%clk 0:00:18]} 27. Kxd2 {[%clk 0:02:18]}  Rd8+ {[%clk 0:00:19]} 28. Ke2 {[%clk 0:02:18]}  Kf8 {[%clk 0:00:18]} 29. c4 {[%clk 0:02:17]}  a6 {[%clk 0:00:16]} 30. cxb5 {[%clk 0:02:17]}  axb5 {[%clk 0:00:16]} 31. a4 {[%clk 0:02:16]}  Rb8 {[%clk 0:00:14]} 32. axb5 {[%clk 0:02:16]}  cxb5 {[%clk 0:00:13]} 33. Rb4 {[%clk 0:02:16]}  Ke7 {[%clk 0:00:12]} 34. Kd3 {[%clk 0:02:17]}  Kd6 {[%clk 0:00:12]} 35. Kd4 {[%clk 0:02:17]}  Kc6 {[%clk 0:00:11]} 36. g4 {[%clk 0:02:17]}  Rd8+ {[%clk 0:00:11]} 37. Ke4 {[%clk 0:02:17]}  Kc5 {[%clk 0:00:11]} 38. Rb1 {[%clk 0:02:16]}  Re8+ {[%clk 0:00:10]} 39. Kf4 {[%clk 0:02:16]}  b4 {[%clk 0:00:10]} 40. g5 {[%clk 0:02:04]}  hxg5+ {[%clk 0:00:09]} 41. Kxg5 {[%clk 0:02:05]}  f6+ {[%clk 0:00:10]} 42. Kg6 {[%clk 0:02:05]}  Re7 {[%clk 0:00:10]} 43. Rc1+ {[%clk 0:01:58]}  Kb5 {[%clk 0:00:10]} 44. Rh1 {[%clk 0:01:58]}  Rb7 {[%clk 0:00:10]} 45. Rh7 {[%clk 0:01:59]}  b3 {[%clk 0:00:09]} 46. Rxg7 {[%clk 0:02:00]}  Rxg7+ {[%clk 0:00:09]} 47. Kxg7 {[%clk 0:02:01]}  b2 {[%clk 0:00:09]} 48. Kxf6 {[%clk 0:02:02]}  b1=Q {[%clk 0:00:09]} 49. f4 {[%clk 0:02:01]}  Qe4 {[%clk 0:00:09]} 50. Kg6 {[%clk 0:02:00]}  Qg2+ {[%clk 0:00:09]} 51. Kf7 {[%clk 0:02:00]}  Kc6 {[%clk 0:00:07]} 52. f6 {[%clk 0:02:00]}  Kd7 {[%clk 0:00:08]} 53. Kf8 {[%clk 0:01:59]}  Qg6 {[%clk 0:00:07]} 54. f7 {[%clk 0:01:59]}  Qf6 {[%clk 0:00:06]} 55. f5 {[%clk 0:01:59]}  Qh8# {[%clk 0:00:06]} 0-1

[Event "December 19 Late 2023"]
[Site "https://www.chess.com"]
[Date "2023.12.19"]
[Round "1"]
[White "Copeland, Samuel"]
[Black "Ezat, Mohamed"]
[Result "0-1"]
[Board "126"]
[TimeControl "180+1"]
[WhiteFideId "2007347"]
[BlackFideId "10600906"]
[WhiteElo "2284"]
[BlackElo "2367"]
[WhiteTeam "USA"]
[BlackTeam "EGY"]
[WhiteClock "0:01:34"]
[BlackClock "0:02:28"]

1. e4 {[%clk 0:02:57]}  c6 {[%clk 0:03:00]} 2. Nc3 {[%clk 0:02:56]}  d5 {[%clk 0:02:59]} 3. Nf3 {[%clk 0:02:56]}  Bg4 {[%clk 0:02:58]} 4. h3 {[%clk 0:02:56]}  Bh5 {[%clk 0:02:58]} 5. exd5 {[%clk 0:02:55]}  cxd5 {[%clk 0:02:56]} 6. Bb5+ {[%clk 0:02:55]}  Nc6 {[%clk 0:02:56]} 7. g4 {[%clk 0:02:55]}  Bg6 {[%clk 0:02:57]} 8. Ne5 {[%clk 0:02:55]}  Rc8 {[%clk 0:02:57]} 9. d4 {[%clk 0:02:54]}  e6 {[%clk 0:02:57]} 10. h4 {[%clk 0:02:51]}  f6 {[%clk 0:02:56]} 11. Nxg6 {[%clk 0:02:46]}  hxg6 {[%clk 0:02:57]} 12. Qd3 {[%clk 0:02:38]}  f5 {[%clk 0:02:56]} 13. Bf4 {[%clk 0:02:29]}  Nf6 {[%clk 0:02:54]} 14. Bg5 {[%clk 0:02:25]}  Bb4 {[%clk 0:02:46]} 15. O-O-O {[%clk 0:02:21]}  Qa5 {[%clk 0:02:45]} 16. Rde1 {[%clk 0:02:14]}  Ne4 {[%clk 0:02:42]} 17. f3 {[%clk 0:02:03]}  Bxc3 {[%clk 0:02:31]} 18. bxc3 {[%clk 0:01:56]}  Qa3+ {[%clk 0:02:30]} 19. Kd1 {[%clk 0:01:53]}  Nf2+ {[%clk 0:02:29]} 20. Kd2 {[%clk 0:01:49]}  Nxd3 {[%clk 0:02:29]} 21. Rxe6+ {[%clk 0:01:34]}  Kf7 {[%clk 0:02:28]} 0-1

[Event "December 19 Late 2023"]
[Site "https://www.chess.com"]
[Date "2023.12.19"]
[Round "1"]
[White "Haraguchi, Diego Sashaki"]
[Black "Kokoszczynski, Jan"]
[Result "0-1"]
[Board "128"]
[TimeControl "180+1"]
[WhiteFideId "22729925"]
[BlackFideId "1174460"]
[WhiteElo "2185"]
[BlackElo "2266"]
[WhiteTeam "BRA"]
[BlackTeam "POL"]
[WhiteClock "0:00:16"]
[BlackClock "0:00:34"]

1. d4 {[%clk 0:03:00]}  Nf6 {[%clk 0:02:51]} 2. c4 {[%clk 0:02:59]}  g6 {[%clk 0:02:51]} 3. Nc3 {[%clk 0:02:58]}  Bg7 {[%clk 0:02:51]} 4. e4 {[%clk 0:02:58]}  d6 {[%clk 0:02:50]} 5. Be2 {[%clk 0:02:58]}  O-O {[%clk 0:02:50]} 6. Be3 {[%clk 0:02:58]}  e5 {[%clk 0:02:49]} 7. d5 {[%clk 0:02:54]}  a5 {[%clk 0:02:37]} 8. Nf3 {[%clk 0:02:50]}  Na6 {[%clk 0:02:27]} 9. O-O {[%clk 0:02:48]}  Nh5 {[%clk 0:02:22]} 10. a3 {[%clk 0:02:45]}  Nf4 {[%clk 0:02:11]} 11. Rb1 {[%clk 0:02:38]}  f5 {[%clk 0:01:42]} 12. b4 {[%clk 0:02:30]}  Nxe2+ {[%clk 0:01:31]} 13. Qxe2 {[%clk 0:02:24]}  f4 {[%clk 0:01:31]} 14. Bd2 {[%clk 0:02:22]}  g5 {[%clk 0:01:32]} 15. Ne1 {[%clk 0:02:11]}  g4 {[%clk 0:01:29]} 16. Nd3 {[%clk 0:02:04]}  Rf6 {[%clk 0:01:03]} 17. f3 {[%clk 0:02:00]}  Rg6 {[%clk 0:01:00]} 18. b5 {[%clk 0:01:25]}  Nc5 {[%clk 0:00:59]} 19. Nxc5 {[%clk 0:01:24]}  dxc5 {[%clk 0:00:59]} 20. b6 {[%clk 0:01:09]}  cxb6 {[%clk 0:00:42]} 21. Qd3 {[%clk 0:01:01]}  Qh4 {[%clk 0:00:37]} 22. Be1 {[%clk 0:00:51]}  g3 {[%clk 0:00:36]} 23. h3 {[%clk 0:00:47]}  Bxh3 {[%clk 0:00:36]} 24. gxh3 {[%clk 0:00:40]}  Qxh3 {[%clk 0:00:37]} 25. Qe2 {[%clk 0:00:38]}  g2 {[%clk 0:00:37]} 26. Kf2 {[%clk 0:00:20]}  Qg3+ {[%clk 0:00:34]} 27. Kg1 {[%clk 0:00:16]}  gxf1=Q+ {[%clk 0:00:34]} 0-1